fUSD/lending_fUSD_20240424
["ID","MTS","AMOUNT","RATE_DAILY","PERIOD"]
[323377151,1713949421875,-410.38829253,9.498e-05,2]
[323377152,1713949421896,-1482.17616553,9.989e-05,2]
[323377153,1713949421917,-183.38545674,9.998e-05,2]
[323377154,1713949421939,-155.0,9.998e-05,2]
[323377155,1713949421962,-150.0,9.998e-05,2]
[323377156,1713949421985,-150.0,9.998e-05,2]
[323377157,1713949422007,-361.63891312,9.999e-05,2]
[323377158,1713949422642,-2142.10521929,9.999e-05,2]
[323377159,1713949422668,-1857.89478071,9.999e-05,2]
[323377160,1713949423112,-2978.36469458,9.998e-05,2]
[323377161,1713949423134,-1021.63530542,9.999e-05,2]
[323377162,1713949423465,-4000.0,9.999e-05,2]
[323377163,1713949423847,-4000.0,9.999e-05,2]
[323377164,1713949424981,-4000.0,9.999e-05,2]
[323377165,1713949425077,-4000.0,9.999e-05,2]
[323377166,1713949425222,-4000.0,9.999e-05,2]
[323377167,1713949425412,-4000.0,9.999e-05,2]
[323377168,1713949425957,-4000.0,9.999e-05,2]
[323377169,1713949426495,-4000.0,9.999e-05,2]
[323377170,1713949427087,-4000.0,9.999e-05,2]
[323377171,1713949427453,-4000.0,9.999e-05,2]
[323377172,1713949427758,-4000.0,9.999e-05,2]
[323377173,1713949428131,-4000.0,9.999e-05,2]
[323377174,1713949428404,-1848.75215483,9.999e-05,2]
[323377175,1713949428427,-2151.24784517,0.0001,2]
[323377176,1713949428699,-4000.0,0.0001,2]
[323377177,1713949429274,-4000.0,0.0001,2]
[323377178,1713949429588,-4000.0,0.0001,2]
[323377179,1713949430396,-4000.0,0.0001,2]
[323377180,1713949430675,-4000.0,0.0001,2]
[323377181,1713949431234,-4000.0,0.0001,2]
[323377182,1713949431562,-4000.0,0.0001,2]
[323377183,1713949432058,-4000.0,0.0001,2]
[323377184,1713949432375,-4000.0,0.0001,2]
[323377185,1713949432852,-4000.0,0.0001,2]
[323377186,1713949433212,-4000.0,0.0001,2]
[323377187,1713949433796,-189.09138709,9.999e-05,2]
[323377188,1713949433819,-3810.90861291,0.0001,2]
[323377189,1713949434125,-4000.0,0.0001,2]
[323377190,1713949434736,-4000.0,0.0001,2]
[323377191,1713949436043,-4000.0,0.0001,2]
[323377192,1713949436261,-4000.0,0.0001,2]
[323377193,1713949436947,-4000.0,0.0001,2]
[323377194,1713949437638,-4000.0,0.0001,2]
[323377195,1713949438325,-4000.0,0.0001,2]
[323377196,1713949474677,-3294.84944046,9.999e-05,2]
[323377197,1713949474698,-2285.15055954,0.0001,2]
[323377198,1713949546459,-216.16,8.752e-05,2]
[323377199,1713949546482,-3783.84,0.0001,2]
[323377200,1713949547191,-4000.0,0.0001,2]
[323377201,1713949547753,-4000.0,0.0001,2]
[323377202,1713949548360,-4000.0,0.0001,2]
[323377203,1713949608291,-533.20177821,9.949e-05,2]
[323377204,1713949608312,-200.39826972,9.95e-05,2]
[323377205,1713949608607,-1000.0,9.999e-05,2]
[323377206,1713949608639,-2266.39995207,9.999e-05,2]
[323377207,1713949608899,-4000.0,9.999e-05,2]
[323377208,1713949622789,-641.61516885,9.947e-05,2]
[323377209,1713949622809,-527.00850099,9.948e-05,2]
[323377210,1713949622831,-532.18170628,9.998e-05,2]
[323377211,1713949622851,-2299.19462388,9.999e-05,2]
[323377225,1713949832125,-641.61516885,9.893e-05,2]
[323377227,1713949832135,-114.65771472,9.9e-05,2]
[323377229,1713949832150,-3885.34228528,9.9e-05,2]
[323377231,1713949832159,-1073.0,9.944e-05,2]
[323377232,1713949832169,-456.00156429,9.997e-05,2]
[323377233,1713949832178,-150.0,9.997e-05,2]
[323377234,1713949832187,-300.0,9.997e-05,2]
[323377235,1713949832196,-523.1005237,9.998e-05,2]
[323377236,1713949832206,-12699.22402234,9.998e-05,2]
[323377239,1713949833113,-294.37684153,9.998e-05,2]
[323377240,1713949833125,-811.05669613,9.998e-05,2]
[323377241,1713949833742,-2941.37539501,9.998e-05,2]
[323377242,1713949833754,-1855.90852443,9.998e-05,2]
[323377243,1713949833764,-1420.38778442,9.998e-05,2]
[323377244,1713949833773,-361.31205977,9.999e-05,2]
[323377245,1713949833782,-9084.29912539,9.999e-05,2]
[323377246,1713949833806,-335.66233171,9.999e-05,2]
[323377247,1713949833841,-4075.84388247,9.999e-05,2]
[323377251,1713949838554,-4756.280333,9.999e-05,2]
[323377393,1713949840295,-4061.18956462,9.999e-05,2]
[323377428,1713949840614,-54606.44369807,9.999e-05,2]
[323377430,1713949840623,-173.08810832,9.999e-05,2]
[323377432,1713949840633,-288.49240572,9.999e-05,2]
[323377434,1713949840644,-866.47209903,9.999e-05,2]
[323377436,1713949840654,-365.84511527,9.999e-05,2]
[323377438,1713949840663,-499532.73494851,0.0001,2]
[323377480,1713949843765,-557.84755322,0.0001,2]
[323377481,1713949843803,-74442.78742962,0.0001,2]
[323377482,1713949843812,-898.04866499,0.0001,2]
[323377483,1713949843822,-2306.0,0.0001,2]
[323377484,1713949843831,-15250.87317409,0.0001,2]
[323377485,1713949843841,-471.26733516,0.0001,2]
[323377500,1713949844116,-203.99157121,0.0001,2]
[323377501,1713949844154,-155.0,0.0001,2]
[323377502,1713949844168,-7960.2904742,0.0001,2]
[323377503,1713949844177,-1064.32127,0.0001,2]
[323377504,1713949844187,-5000.0,0.0001,2]
[323377505,1713949844197,-1000.0,0.00010472,2]
[323377506,1713949844207,-1141.89,0.00010477,2]
[323377507,1713949844215,-1167.02,0.00010479,2]
[323377508,1713949844225,-30000.0,0.000105,2]
[323377509,1713949844236,-1818.36,0.000105,2]
[323377510,1713949844246,-1500.0,0.00010527,2]
[323377511,1713949844259,-2170.05,0.00010597,2]
[323377512,1713949844269,-731.91,0.00010602,2]
[323377513,1713949844278,-321.13,0.00010694,2]
[323377514,1713949844287,-910.37,0.000107,2]
[323377515,1713949844296,-910.37,0.000107,2]
[323377516,1713949844305,-910.37,0.000107,2]
[323377517,1713949844314,-616.4,0.00010726,2]
[323377518,1713949844324,-536.17,0.000108,2]
[323377519,1713949844334,-910.37,0.000108,2]
[323377520,1713949844344,-910.37,0.000108,2]
[323377521,1713949844355,-197.17,0.00010873,2]
[323377522,1713949844365,-800.0,0.000109,3]
[323377523,1713949844374,-167.29,0.00010931,2]
[323377524,1713949844383,-210.0,0.00010997,2]
[323377525,1713949844393,-30000.0,0.00011,2]
[323377526,1713949844403,-216.16,0.00011015,2]
[323377527,1713949844412,-333.0,0.0001138,2]
[323377528,1713949844422,-284.36209631,0.00011518,2]
[323377529,1713949844431,-155.91219542,0.00011518,2]
[323377530,1713949844440,-743.63693517,0.00011579,2]
[323377531,1713949844451,-3716.0329689,0.00011777,2]
[323377532,1713949844461,-197.94409732,0.00011778,2]
[323377533,1713949844471,-155.12172835,0.00011778,2]
[323377534,1713949844488,-255.59665704,0.00011778,2]
[323377535,1713949844498,-159.32347025,0.00011778,2]
[323377536,1713949844507,-409.34407034,0.00011778,2]
[323377537,1713949844517,-1000.0,0.00011781,2]
[323377538,1713949844527,-17311.19786046,0.0001186,2]
[323377539,1713949844536,-151.0,0.0001186,2]
[323377540,1713949844546,-12890.71530064,0.0001188,2]
[323377541,1713949844555,-1700.0,0.000119,4]
[323377542,1713949844564,-150.58,0.00011973,2]
[323377543,1713949844573,-522.07,0.00011973,2]
[323377544,1713949844583,-162.82,0.00011973,2]
[323377545,1713949844592,-418.94,0.00011973,2]
[323377546,1713949844601,-150.47,0.00011973,2]
[323377547,1713949844610,-323.36,0.00011973,2]
[323377548,1713949844622,-437.24,0.00011973,2]
[323377549,1713949844634,-150.0,0.00011973,2]
[323377550,1713949844643,-162.21,0.00011973,2]
[323377551,1713949844654,-350.47,0.00011973,2]
[323377552,1713949844663,-150.0,0.00011973,2]
[323377553,1713949844673,-162.82,0.00011973,2]
[323377554,1713949844682,-522.07,0.00011973,2]
[323377555,1713949844692,-150.0,0.00011973,2]
[323377556,1713949844701,-350.47,0.00011973,2]
[323377557,1713949844711,-150.0,0.00011973,2]
[323377558,1713949844722,-162.82,0.00011973,2]
[323377559,1713949844731,-522.07,0.00011973,2]
[323377560,1713949844741,-150.0,0.00011973,2]
[323377561,1713949844751,-522.07,0.00011973,2]
[323377562,1713949844761,-150.0,0.00011973,2]
[323377563,1713949844770,-150.0,0.00011973,2]
[323377564,1713949844779,-162.82,0.00011973,2]
[323377565,1713949844789,-350.47,0.00011973,2]
[323377566,1713949844798,-522.07,0.00011973,2]
[323377567,1713949844808,-350.47,0.00011973,2]
[323377568,1713949844818,-150.0,0.00011973,2]
[323377569,1713949844828,-162.04,0.00011973,2]
[323377570,1713949844839,-213.54,0.00011973,2]
[323377571,1713949844849,-522.07,0.00011973,2]
[323377572,1713949844858,-350.47,0.00011973,2]
[323377573,1713949844867,-522.07,0.00011973,2]
[323377574,1713949844876,-350.47,0.00011973,2]
[323377575,1713949844885,-519.99,0.00011973,2]
[323377576,1713949844894,-350.47,0.00011973,2]
[323377577,1713949844903,-1042.24919758,0.00012,2]
[323377578,1713949844913,-2053.46,0.00012,2]
[323377579,1713949844922,-3751.63,0.00012,2]
[323377580,1713949844931,-321.13,0.00012031,2]
[323377581,1713949844940,-164.07,0.00012033,2]
[323377582,1713949844950,-522.765,0.0001207,2]
[323377583,1713949844959,-293.0,0.00012096,2]
[323377584,1713949844968,-333.0,0.0001212,2]
[323377585,1713949844978,-200.7089839,0.00012158,2]
[323377586,1713949844987,-1132.97605351,0.00012158,2]
[323377587,1713949844996,-180.21956281,0.00012205,2]
[323377588,1713949845005,-562.0,0.00012246,2]
[323377589,1713949845015,-1964.0,0.00012246,2]
[323377590,1713949845025,-529.0,0.00012304,2]
[323377591,1713949845035,-84663.36686793,0.00012305,2]
[323377592,1713949845072,-659.55849175,0.00012305,2]
[323377593,1713949845117,-603.2361818,0.00012305,2]
[323377594,1713949845156,-1002.74034574,0.00012305,2]
[323377595,1713949845166,-814.54165487,0.00012305,2]
[323377596,1713949845205,-26470.576,0.00012305,2]
[323377597,1713949845280,-403.7280698,0.00012305,2]
[323377620,1713949846465,-2120.18465599,9.948e-05,2]
[323377621,1713949846488,-3523.33871929,9.948e-05,2]
[323377622,1713949846599,-1244.98716576,9.948e-05,2]
[323377624,1713950127182,15000.0,0.00019,29]
[323377644,1713951038459,-202.35678191,8.676e-05,2]
[323377645,1713951038468,-641.61516885,8.677e-05,2]
[323377646,1713951038477,-749.55466285,8.681e-05,2]
[323377647,1713951038486,-538.99664673,8.684e-05,2]
[323377648,1713951038495,-169.79,8.694e-05,2]
[323377649,1713951038504,-843.41,8.974e-05,2]
[323377650,1713951038513,-539.29391901,9.21e-05,2]
[323377651,1713951038522,-1500.0,9.269e-05,2]
[323377652,1713951038531,-850.999178,9.897e-05,2]
[323377653,1713951038540,-150.0,9.947e-05,2]
[323377654,1713951038549,-34563.30226139,9.948e-05,2]
[323377655,1713951038560,-46510.15414431,9.948e-05,2]
[323377656,1713951038573,-378.87965063,9.948e-05,2]
[323377657,1713951038600,-6427.80000005,9.948e-05,2]
[323377658,1713951038672,-1573.94979719,9.948e-05,2]
[323377659,1713951038772,-1488.86329916,9.948e-05,2]
[323377662,1713951038785,-1369.29431586,9.948e-05,2]
[323377860,1713951040558,-1900.43595,9.948e-05,2]
[323377863,1713951040570,-435.95000011,9.948e-05,2]
[323377876,1713951040650,-5391.71108107,9.948e-05,2]
[323377883,1713951040707,-7196.88425673,9.948e-05,2]
[323377885,1713951040719,-717.32398569,9.948e-05,2]
[323377903,1713951040875,-4138.51515563,9.948e-05,2]
[323377926,1713951043510,-701.33067573,9.948e-05,2]
[323377927,1713951043567,-22975.47413973,9.948e-05,2]
[323377928,1713951043576,-2440.92,9.948e-05,2]
[323377929,1713951043586,-408.31930259,0.0001,2]
[323377930,1713951043595,-66663.0,0.0001,2]
[323377931,1713951043605,-40603.0,0.0001,2]
[323377932,1713951043614,-266.03,0.0001,2]
[323377933,1713951043624,-250.0,0.00010481,2]
[323377934,1713951043633,-203.99157121,0.00010518,2]
[323377935,1713951043642,-151.42,0.00010519,2]
[323377936,1713951043653,-1749.53,0.00010688,2]
[323377937,1713951043662,-907.2,0.00010823,2]
[323377938,1713951043672,-963.95,0.000109,2]
[323377939,1713951043681,-1000.0,0.00010905,2]
[323377940,1713951043690,-246.63,0.00010973,2]
[323377941,1713951043700,-843.41,0.00011238,2]
[323377942,1713951043709,-166.45,0.00011598,2]
[323377943,1713951043723,-700.0,0.000119,4]
[323377944,1713951043732,-43032.4676,0.00011982,2]
[323377945,1713951043742,-7308.33751004,0.00012082,2]
[323377946,1713951043779,-1292.83344922,0.00012082,2]
[323377947,1713951043790,-1176.64081656,0.00012082,2]
[323377948,1713951043866,-712.3,0.00012082,2]
[323377952,1713951046497,-896.01,0.00012082,2]
[323377953,1713951046556,-4265.17455051,0.00012082,2]
[323377954,1713951046949,-705.56139444,0.00012082,2]
[323377955,1713951046960,-817.73564168,0.00012082,2]
[323377956,1713951046971,-873.88559492,0.00012082,2]
[323377965,1713951632811,169.79,8.452e-05,2]
[323377972,1713951730498,288.49240572,8.452e-05,2]
[323377973,1713951731719,173.08810832,8.452e-05,2]
[323377974,1713951737626,361.31205977,8.452e-05,2]
[323377975,1713951744006,365.84511527,8.452e-05,2]
[323377976,1713951748619,288.71913724,8.452e-05,2]
[323377977,1713951749902,152.75317368,8.452e-05,2]
[323377978,1713951749926,20.33493464,8.452e-05,2]
[323377982,1713951752919,866.47209903,8.452e-05,2]
[323377983,1713951753627,360.92544217,8.452e-05,2]
[323377986,1713951758886,15000.0,0.00019,29]
[323377987,1713951760047,365.84511527,8.452e-05,2]
[323377991,1713951767546,173.08810832,8.452e-05,2]
[323377993,1713951772935,866.47209903,8.452e-05,2]
[323377995,1713951784003,365.35803432,8.452e-05,2]
[323377998,1713951785512,173.08810832,8.452e-05,2]
[323378000,1713951789755,394.36612299,8.452e-05,2]
[323378003,1713951801556,173.13848828,8.452e-05,2]
[323378020,1713952231361,-155.0,8.554e-05,2]
[323378021,1713952231385,-2215.83251815,8.555e-05,2]
[323378022,1713952231408,-363.81924561,8.556e-05,2]
[323378023,1713952231433,-376.89577629,8.556e-05,2]
[323378024,1713952231455,-641.61516885,8.556e-05,2]
[323378025,1713952231478,-408.49724038,8.557e-05,2]
[323378029,1713952231501,-265.50698915,8.557e-05,2]
[323378031,1713952231525,-759.06,8.561e-05,2]
[323378032,1713952231549,-1784.27491682,8.711e-05,2]
[323378033,1713952231572,-150.0,8.712e-05,2]
[323378034,1713952231596,-597.61086253,9.317e-05,2]
[323378035,1713952231928,-150.99,0.0001,2]
[323378036,1713952231952,-203.99157121,0.00010246,2]
[323378037,1713952231985,-250.0,0.00010247,2]
[323378038,1713952232014,-644.90571101,0.00010275,2]
[323378046,1713952232130,-520.77428899,0.00010275,2]
[323378048,1713952232140,-499.99,0.00010275,2]
[323378050,1713952232149,-166.87,0.00010642,2]
[323378052,1713952232159,-1500.0,0.0001069,2]
[323378054,1713952232168,-1000.0,0.00010717,2]
[323378055,1713952232180,-154.75,0.00010802,2]
[323378057,1713952232190,-759.06,0.00010825,2]
[323378059,1713952232199,-154.75,0.00010831,2]
[323378061,1713952232208,-154.75,0.00010861,2]
[323378063,1713952232218,-154.75,0.00010891,2]
[323378065,1713952232228,-154.75,0.0001092,2]
[323378067,1713952232237,-154.75,0.0001095,2]
[323378068,1713952232247,-154.75,0.00010979,2]
[323378069,1713952232257,-154.75,0.00011009,2]
[323378070,1713952232267,-154.75,0.00011039,2]
[323378071,1713952232277,-154.75,0.00011068,2]
[323378072,1713952232287,-154.75,0.00011098,2]
[323378073,1713952232297,-154.75,0.00011127,2]
[323378074,1713952232307,-192.67,0.00011128,2]
[323378075,1713952232316,-154.75,0.00011157,2]
[323378076,1713952232325,-154.75,0.00011187,2]
[323378077,1713952232335,-154.75,0.00011216,2]
[323378078,1713952232345,-154.75,0.00011246,2]
[323378079,1713952232355,-154.75,0.00011276,2]
[323378080,1713952232364,-154.75,0.00011305,2]
[323378081,1713952232374,-154.75,0.00011335,2]
[323378082,1713952232383,-154.75,0.00011364,2]
[323378083,1713952232393,-5798.80386843,0.00011963,2]
[323378084,1713952232441,-3318.25,0.00011963,2]
[323378085,1713952232453,-9240.55695824,0.00011963,2]
[323378086,1713952232464,-1685.38030578,0.00011963,2]
[323378087,1713952232473,-2750.0,0.00012,2]
[323378088,1713952232483,-1000.0,0.00012057,2]
[323378089,1713952232492,-168.93503482,0.00012081,2]
[323378090,1713952232503,-886.93439,0.00012082,2]
[323378091,1713952232514,-741.9789,0.00012104,2]
[323378092,1713952232524,-7500.0,0.00012104,2]
[323378093,1713952232534,-264.55582492,0.00012204,2]
[323378094,1713952232543,-1000.0,0.00012204,2]
[323378095,1713952232553,-29861.9285,0.00012204,2]
[323378096,1713952232563,-500.0,0.00012204,2]
[323378097,1713952232572,-17460.3364,0.00012204,2]
[323378098,1713952232582,-231.7101,0.00012204,2]
[323378099,1713952232591,-66357.55886691,0.00012204,2]
[323378100,1713952232603,-562.34159793,0.00012204,2]
[323378101,1713952232616,-313.94261921,0.00012204,2]
[323378102,1713952232638,-4903.46776207,0.00012204,2]
[323378103,1713952232659,-2657.2665935,0.00012204,2]
[323378104,1713952232671,-1075.9549519,0.00012204,2]
[323378105,1713952232714,-737.77704635,0.00012204,2]
[323378106,1713952232725,-873.58,0.00012204,2]
[323378107,1713952232737,-259.94301548,0.00012204,2]
[323378108,1713952232765,-1139.03977247,0.00012204,2]
[323378109,1713952232776,-7876.43527198,0.00012204,2]
[323378110,1713952232797,-1604.30848172,0.00012204,2]
[323378113,1713952237562,-311.184893,0.00012204,2]
[323378114,1713952237574,-3635.759042,0.00012204,2]
[323378115,1713952237622,-831.075,0.00012204,2]
[323378116,1713952237738,-769.96443153,0.00012204,2]
[323378117,1713952237749,-261.37487787,0.00012204,2]
[323378118,1713952237760,-562.99630196,0.00012204,2]
[323378119,1713952237772,-148078.07207412,0.00012204,2]
[323378120,1713952237782,-272.0931,0.00012204,2]
[323378121,1713952237792,-6202.14724072,0.00012284,2]
[323378122,1713952237801,-4893.876186,0.000123,2]
[323378123,1713952237811,-600.0,0.000123,4]
[323378124,1713952237820,-541.0,0.00012301,2]
[323378125,1713952237830,-1892.0,0.00012301,2]
[323378126,1713952237839,-126739.60298323,0.00012304,2]
[323378127,1713952237849,-2326.77601793,0.00012304,2]
[323378128,1713952237858,-115375.80030119,0.00012305,2]
[323378129,1713952237867,-618.597,0.0001232,2]
[323378130,1713952237877,-246.63,0.00012345,2]
[323378131,1713952237886,-1300.0,0.000124,4]
[323378132,1713952237895,-115021.71353118,0.00012471,2]
[323378133,1713952237905,-2000.0,0.000125,4]
[323378134,1713952237914,-192.67,0.00012519,2]
[323378136,1713952237923,-100421.10285666,0.00012555,2]
[323378138,1713952237935,-2700.0,0.000126,4]
[323378140,1713952237945,-180.21956279,0.00012691,2]
[323378142,1713952237954,-10000.0,0.000127,2]
[323378144,1713952237963,-1919.76179458,0.000127,2]
[323378146,1713952237975,-13052.6667367,0.000127,2]
[323378148,1713952237985,-2741.92411524,0.000127,4]
[323378154,1713952238030,-658.07588476,0.000127,4]
[323378156,1713952238040,-300.135,0.00012708,2]
[323378158,1713952238049,-2100.0,0.00012708,2]
[323378160,1713952238059,-14972.4285312,0.00012718,2]
[323378161,1713952238069,-14972.4285312,0.00012736,2]
[323378162,1713952238079,-20000.0,0.00012751,2]
[323378163,1713952238089,-14972.4285312,0.00012755,2]
[323378164,1713952238098,-197.58977563,0.0001277,2]
[323378165,1713952238108,-560.0907003,0.0001277,2]
[323378167,1713952238118,-155.78127113,0.0001277,2]
[323378168,1713952238127,-14972.4285312,0.00012773,2]
[323378169,1713952238137,-560.09070029,0.00012773,2]
[323378170,1713952238146,-197.58977563,0.00012776,2]
[323378171,1713952238156,-180.21956279,0.00012776,2]
[323378172,1713952238166,-560.09070029,0.00012776,2]
[323378173,1713952238175,-155.78127112,0.00012776,2]
[323378174,1713952238185,-525.0,0.00012784,2]
[323378175,1713952238194,-6076.55190605,0.00012784,2]
[323378176,1713952238206,-11940.0,0.00012784,2]
[323378177,1713952238234,-662.12240647,0.00012784,2]
[323378178,1713952238245,-2143.77423767,0.00012784,2]
[323378179,1713952238257,-79177.55144981,0.00012784,2]
[323378180,1713952238267,-14972.4285312,0.00012791,2]
[323378181,1713952238277,-150.0,0.00012795,2]
[323378182,1713952238287,-150.0,0.00012795,2]
[323378183,1713952238296,-150.0,0.00012795,2]
[323378184,1713952238306,-12166.29556956,0.00012798,2]
[323378185,1713952238316,-339.20676129,0.00012798,2]
[323378186,1713952238325,-11472.36526361,0.00012798,2]
[323378187,1713952238334,-207.76684945,0.00012798,2]
[323378188,1713952238345,-1164.53070172,0.00012799,3]
[323378189,1713952238354,-57412.91297853,0.000128,2]
[323378190,1713952238364,-4037.79038239,0.000128,2]
[323378191,1713952238374,-4126.309411,0.000128,2]
[323378192,1713952238384,-5000.0,0.000128,2]
[323378193,1713952238393,-762.07890662,0.000128,2]
[323378194,1713952238402,-20792.21916832,0.000128,2]
[323378195,1713952238412,-2228.90607846,0.000128,2]
[323378196,1713952238422,-21224.04699461,0.000128,5]
[323378197,1713952238433,-600.0,0.000128,4]
[323378198,1713952238444,-155.0,0.00012808,2]
[323378199,1713952238453,-14972.4285312,0.00012809,2]
[323378200,1713952238463,-14972.4285312,0.00012827,2]
[323378201,1713952238473,-4870.1374009,0.00012841,2]
[323378202,1713952239659,-871.9,0.00012841,2]
[323378227,1713952242625,-500.0,0.00012104,2]
[323378228,1713952242635,-4257.9625991,0.00012841,2]
[323378229,1713952242645,-14972.4285312,0.00012845,2]
[323378230,1713952242655,-7302.31297293,0.00012853,2]
[323378231,1713952242666,-2231.98446726,0.00012854,2]
[323378232,1713952242676,-185.56957774,0.00012858,2]
[323378233,1713952242689,-404.80228358,0.00012859,2]
[323378234,1713952242699,-59654.4226741,0.0001286,2]
[323378235,1713952242708,-74543.47200773,0.0001286,2]
[323378236,1713952242867,-30456.52799227,0.0001286,2]
[323378237,1713952242876,-14972.4285312,0.00012864,2]
[323378238,1713952242886,-781.35828446,0.00012866,2]
[323378239,1713952242895,-490.34348975,0.00012866,7]
[323378240,1713952242904,-282.89191405,0.00012866,2]
[323378241,1713952242914,-953.98892939,0.00012866,2]
[323378242,1713952242924,-157.13102461,0.00012866,2]
[323378243,1713952242934,-709.14778738,0.00012866,2]
[323378244,1713952242944,-155.0,0.00012866,2]
[323378245,1713952242954,-155.0,0.00012866,2]
[323378246,1713952242964,-914.24123917,0.00012866,2]
[323378247,1713952242974,-165.2853988,0.00012866,2]
[323378248,1713952242984,-2113.44679921,0.00012866,2]
[323378249,1713952242994,-307.91625811,0.00012866,2]
[323378250,1713952243003,-160.91122999,0.00012866,2]
[323378251,1713952243013,-245.00153116,0.00012866,2]
[323378252,1713952243022,-645.24470529,0.00012866,2]
[323378253,1713952243031,-307.97721262,0.00012866,2]
[323378254,1713952243040,-2354.9788646,0.00012866,2]
[323378255,1713952243050,-155.36861111,0.00012866,2]
[323378256,1713952243059,-1062.73597904,0.00012866,2]
[323378257,1713952243068,-262.22676469,0.00012866,2]
[323378258,1713952243077,-4276.08767815,0.00012866,2]
[323378259,1713952243087,-178.5680505,0.00012866,2]
[323378260,1713952243097,-155.0,0.00012866,2]
[323378261,1713952243106,-1708.56534681,0.00012866,2]
[323378264,1713952243527,-2049.64814384,0.00012866,2]
[323378265,1713952243537,-241.37782731,0.00012866,2]
[323378266,1713952243547,-638.0,0.00012866,2]
[323378267,1713952243556,-1772.54174572,0.00012866,2]
[323378268,1713952243566,-2036.75555534,0.00012866,2]
[323378269,1713952243575,-686.89774938,0.00012866,2]
[323378270,1713952243585,-307.18877645,0.00012866,2]
[323378271,1713952243595,-155.31969641,0.00012866,2]
[323378272,1713952243606,-202.07300301,0.00012866,2]
[323378273,1713952243617,-1788.02595548,0.00012866,2]
[323378274,1713952243626,-255.3668917,0.00012866,2]
[323378275,1713952243635,-213.89673121,0.00012866,2]
[323378276,1713952243645,-168.78908351,0.00012866,2]
[323378277,1713952243655,-2185.86360756,0.00012866,2]
[323378278,1713952243666,-825.89636685,0.00012866,2]
[323378279,1713952243715,-257.41522962,0.00012866,2]
[323378280,1713952243727,-2761.68840353,0.00012866,2]
[323378281,1713952243738,-342.46465823,0.00012866,2]
[323378282,1713952243747,-243.60508632,0.00012866,2]
[323378283,1713952243757,-325.27031537,0.00012866,2]
[323378284,1713952243766,-193.07516669,0.00012866,2]
[323378285,1713952243776,-157.04510012,0.00012866,2]
[323378286,1713952243785,-302.54769246,0.00012867,2]
[323378287,1713952243795,-234.82852337,0.00012867,2]
[323378288,1713952243805,-1046.75173862,0.00012868,2]
[323378289,1713952243814,-1581.47309781,0.00012868,2]
[323378290,1713952243827,-1645.7999992,0.00012868,2]
[323378291,1713952245597,-375.49308349,0.00012866,2]
[323378292,1713952245607,-411.65522452,0.00012866,2]
[323378293,1713952245617,-232.39900214,0.00012868,2]
[323378294,1713952246033,-10737.021767,0.00012868,2]
[323378295,1713952246045,-299.29899999,0.00012868,2]
[323378297,1713952246151,-363.60000005,0.00012868,2]
[323378355,1713953431986,-641.61516885,9.439e-05,2]
[323378356,1713953431995,-265.50698915,9.44e-05,2]
[323378357,1713953432005,-150.0,9.444e-05,2]
[323378358,1713953432014,-48.67280162,9.444e-05,2]
[323378359,1713953432024,-594.75831664,9.444e-05,2]
[323378360,1713953432035,-688.81808505,9.444e-05,2]
[323378361,1713953432048,-3397.55952829,9.444e-05,2]
[323378362,1713953432057,-1782.40133871,9.445e-05,2]
[323378363,1713953432068,-1054.71998718,9.445e-05,2]
[323378364,1713953432094,-5173.09849324,9.445e-05,2]
[323378365,1713953432104,-703.28,9.449e-05,2]
[323378366,1713953432113,-3855.0577,9.486e-05,2]
[323378367,1713953432122,-1019.36211525,9.59e-05,2]
[323378368,1713953432131,-1500.0,0.00011079,2]
[323378369,1713953432140,-1000.0,0.00011167,2]
[323378370,1713953432149,-2032.82,0.0001126,2]
[323378371,1713953432158,-776.44,0.00011265,2]
[323378372,1713953432167,-192.67,0.00011499,2]
[323378373,1713953432176,-166.87,0.00011504,2]
[323378374,1713953432185,-703.28,0.00011713,2]
[323378375,1713953432194,-179.98,0.00011845,2]
[323378376,1713953432204,-150.99,0.00011969,2]
[323378377,1713953432213,-150.99,0.00011969,2]
[323378378,1713953432222,-209.9931,0.00012004,2]